[Event "50th Ciudad Sevilla 2024"]
[Site "Sevilla"]
[Date "2025.01.13"]
[Round "4.5"]
[White "Makhnev, Denis"]
[Black "Pogorelov, Ruslan"]
[Result "1-0"]
[Annotator "RC"]
[ECO "E15"]
[WhiteElo "2532"]
[BlackElo "2266"]
[PlyCount "78"]
[EventDate "2025.01.10"]
[EventType "swiss"]
[EventCountry "ESP"]
[SourceTitle "playchess.com"]
[Source "ChessBase"]
[SourceQuality "1"]
[TimeControl "90+30"]

1. d4 {[%emt 0:00:00]} Nf6 {[%emt 0:00:00]} 2. c4 {[%emt 0:00:00]} e6 {[%emt 0:00:00]} 3. Nf3 {[%emt 0:00:00]} b6 {[%emt 0:00:00]} 4. g3 {[%emt 0:00:00]} Ba6 {[%emt 0:00:00]} 5. Qc2 {[%emt 0:00:00]} Bb7 {[%emt 0:00:00]} 6. Bg2 {[%emt 0:00:00]} c5 {[%emt 0:00:00]} 7. d5 {[%emt 0:00:00]} exd5 {[%emt 0:00:00]} 8. cxd5 {[%emt 0:00:00]} Nxd5 {[%emt 0:00:00]} 9. O-O {[%emt 0:00:00]} Nc6 {[%emt 0:00:00]} 10. Rd1 {[%emt 0:00:00]} Be7 {[%emt 0:00:00]} 11. Qf5 {[%emt 0:00:00]} Nf6 {[%emt 0:00:00]} 12. e4 {[%emt 0:00:00]} g6 {[%emt 0:00:00]} 13. Qf4 {[%emt 0:00:00]} O-O {[%emt 0:00:00]} 14. e5 {[%emt 0:00:00]} Nh5 {[%emt 0:00:00]} 15. Qc4 {[%emt 0:00:00]} Na5 {[%emt 0:00:00]} 16. Qf1 {[%emt 0:00:00]} Qc7 {[%emt 0:00:00]} 17. Nc3 {[%emt 0:00:00]} Bc6 {[%emt 0:00:00]} 18. Nd5 {[%emt 0:00:00]} Bxd5 {[%emt 0:00:00]} 19. Rxd5 {[%emt 0:00:00]} Ng7 {[%emt 0:00:00]} 20. Bh6 {[%emt 0:00:00]} Rad8 {[%emt 0:00:00]} 21. b4 {[%emt 0:00:00]} cxb4 {[%emt 0:00:00]} 22. Nd4 {[%emt 0:00:00]} Qc4 {[%emt 0:00:00]} 23. Qxc4 {[%emt 0:00:00]} Nxc4 {[%emt 0:00:00]} 24. Rc1 {[%emt 0:00:00]} b5 {[%emt 0:00:00]} 25. Rxb5 {[%emt 0:00:00]} Rc8 {[%emt 0:00:00]} 26. Bb7 {[%emt 0:00:00]} Rc7 {[%emt 0:00:00]} 27. Ba6 {[%emt 0:00:00]} Bd8 {[%emt 0:00:00]} 28. Kg2 {[%emt 0:00:00]} Nb6 {[%emt 0:00:00]} 29. Rxb4 {[%emt 0:00:00]} Rxc1 {[%emt 0:01:55]} 30. Bxc1 {[%emt 0:00:00]} Bc7 {[%emt 0:00:31]} 31. Nb5 {[%emt 0:00:00]} Bxe5 {[%emt 0:03:01]} 32. Nxa7 {[%emt 0:00:00]} Ra8 {[%emt 0:02:03]} 33. Rxb6 {[%emt 0:00:00]} Rxa7 {[%emt 0:00:13]} 34. Be3 {[%emt 0:00:00]} Ra8 {[%emt 0:02:35]} 35. Bc4 {[%emt 0:00:00]} Nf5 {[%emt 0:00:50]} 36. Bg5 {[%emt 0:00:00]} Ra7 {[%emt 0:05:51]} 37. Ra6 {[%emt 0:00:00]} Rc7 {[%emt 0:00:35]} 38. Bd3 {[%emt 0:00:00]} Nd4 {[%emt 0:02:40]} 39. f4 {[%emt 0:00:00]} Bg7 {[%emt 0:00:08]} 1-0

[Event "50th Ciudad Sevilla 2024"]
[Site "Sevilla"]
[Date "2025.01.13"]
[Round "4.6"]
[White "Keleberda, Tymur"]
[Black "Vignesh N R"]
[Result "1/2-1/2"]
[Annotator "RC"]
[ECO "B30"]
[WhiteElo "2265"]
[BlackElo "2523"]
[PlyCount "121"]
[EventDate "2025.01.10"]
[EventType "swiss"]
[EventCountry "ESP"]
[SourceTitle "playchess.com"]
[Source "ChessBase"]
[SourceQuality "1"]
[TimeControl "90+30"]

1. e4 {[%emt 0:00:00]} c5 {[%emt 0:00:00]} 2. Nf3 {[%emt 0:00:00]} Nc6 {[%emt 0:00:00]} 3. Bb5 {[%emt 0:00:00]} e6 {[%emt 0:00:00]} 4. O-O {[%emt 0:00:00]} Nge7 {[%emt 0:00:00]} 5. Re1 {[%emt 0:00:00]} Nd4 {[%emt 0:00:00]} 6. Bf1 {[%emt 0:00:00]} Nxf3+ {[%emt 0:00:00]} 7. Qxf3 {[%emt 0:00:00]} Nc6 {[%emt 0:00:00]} 8. Na3 {[%emt 0:00:00]} Be7 {[%emt 0:00:00]} 9. c3 {[%emt 0:00:00]} O-O {[%emt 0:00:00]} 10. Nc2 {[%emt 0:00:00]} Ne5 {[%emt 0:00:00]} 11. Qh5 {[%emt 0:00:00]} Ng6 {[%emt 0:00:00]} 12. d4 {[%emt 0:00:00]} cxd4 {[%emt 0:00:00]} 13. Nxd4 {[%emt 0:00:00]} d6 {[%emt 0:00:00]} 14. Be3 {[%emt 0:00:00]} Bd7 {[%emt 0:00:00]} 15. Rad1 {[%emt 0:00:00]} a6 {[%emt 0:00:00]} 16. g3 {[%emt 0:00:00]} b5 {[%emt 0:00:00]} 17. f4 {[%emt 0:00:00]} Re8 {[%emt 0:00:00]} 18. Rd2 {[%emt 0:00:00]} Qc7 {[%emt 0:00:00]} 19. Bd3 {[%emt 0:00:00]} Rad8 {[%emt 0:00:00]} 20. Nf3 {[%emt 0:00:00]} Bc6 {[%emt 0:00:00]} 21. Ng5 {[%emt 0:00:00]} Bxg5 {[%emt 0:00:00]} 22. Qxg5 {[%emt 0:00:00]} Qb7 {[%emt 0:00:00]} 23. Bf2 {[%emt 0:00:00]} d5 {[%emt 0:00:00]} 24. e5 {[%emt 0:00:00]} b4 {[%emt 0:00:00]} 25. Bd4 {[%emt 0:00:00]} bxc3 {[%emt 0:00:00]} 26. bxc3 {[%emt 0:00:00]} Bb5 {[%emt 0:00:00]} 27. Bc2 {[%emt 0:00:00]} Qe7 {[%emt 0:00:00]} 28. Qh5 {[%emt 0:00:00]} Qd7 {[%emt 0:00:00]} 29. Rf2 {[%emt 0:00:10]} Ba4 {[%emt 0:00:00]} 30. Bd3 {[%emt 0:00:40]} Bb5 {[%emt 0:00:00]} 31. Bb1 {[%emt 0:00:02]} Rb8 {[%emt 0:00:00]} 32. g4 {[%emt 0:01:07]} Bc4 {[%emt 0:00:00]} 33. f5 {[%emt 0:01:35]} exf5 {[%emt 0:00:00]} 34. Bxf5 {[%emt 0:00:04]} Qc7 {[%emt 0:01:19]} 35. e6 {[%emt 0:03:23]} fxe6 {[%emt 0:00:10]} 36. Be5 {[%emt 0:02:58]} exf5 {[%emt 0:02:44]} 37. Bxc7 {[%emt 0:00:08]} Rxe1+ {[%emt 0:00:03]} 38. Kg2 {[%emt 0:00:01]} Rbb1 {[%emt 0:03:00]} 39. gxf5 {[%emt 0:01:25]} Rg1+ {[%emt 0:00:51]} 40. Kh3 {[%emt 0:02:01]} Rbf1 {[%emt 0:04:43]} 41. fxg6 {[%emt 0:02:00]} hxg6 {[%emt 0:03:41]} 42. Qf3 {[%emt 0:00:53]} d4 {[%emt 0:01:03]} 43. Bg3 {[%emt 0:02:42]} dxc3 {[%emt 0:00:36]} 44. Qc6 {[%emt 0:01:06]} Rxf2 {[%emt 0:01:15]} 45. Qxc4+ {[%emt 0:00:10]} Rf7 {[%emt 0:00:03]} 46. Qxc3 {[%emt 0:00:06]} Rgf1 {[%emt 0:01:28]} 47. Qc8+ {[%emt 0:00:12]} Kh7 {[%emt 0:00:15]} 48. Qxa6 {[%emt 0:00:07]} R1f5 {[%emt 0:00:11]} 49. Kg4 {[%emt 0:01:56]} Rd7 {[%emt 0:00:01]} 50. Qe6 {[%emt 0:02:15]} Rd4+ {[%emt 0:00:10]} 51. Kh3 {[%emt 0:00:02]} Rh5+ {[%emt 0:00:28]} 52. Kg2 {[%emt 0:00:06]} Rd2+ {[%emt 0:01:14]} 53. Kf3 {[%emt 0:00:04]} Ra5 {[%emt 0:00:33]} 54. Be5 {[%emt 0:02:29]} Ra3+ {[%emt 0:00:17]} 55. Ke4 {[%emt 0:01:05]} Re2+ {[%emt 0:01:21]} 56. Kd4 {[%emt 0:00:13]} Rexa2 {[%emt 0:00:37]} 57. Qe7 {[%emt 0:00:55]} Ra7 {[%emt 0:00:31]} 58. Qh4+ {[%emt 0:00:19]} Kg8 {[%emt 0:00:01]} 59. Qd8+ {[%emt 0:00:21]} Kh7 {[%emt 0:00:00]} 60. Qh4+ {[%emt 0:00:30]} Kg8 {[%emt 0:00:32]} 61. Ke4 {[%emt 0:00:06]} 1/2-1/2

[Event "50th Ciudad Sevilla 2024"]
[Site "Sevilla"]
[Date "2025.01.13"]
[Round "4.7"]
[White "Kvaloy, Aksel Bu"]
[Black "Balabayeva, Xeniya"]
[Result "1-0"]
[Annotator "RC"]
[ECO "E06"]
[WhiteElo "2487"]
[BlackElo "2249"]
[PlyCount "113"]
[EventDate "2025.01.10"]
[EventType "swiss"]
[EventCountry "ESP"]
[SourceTitle "playchess.com"]
[Source "ChessBase"]
[SourceQuality "1"]
[TimeControl "90+30"]

1. d4 {[%emt 0:00:00]} d5 {[%emt 0:00:00]} 2. c4 {[%emt 0:00:00]} e6 {[%emt 0:00:00]} 3. Nf3 {[%emt 0:00:00]} Nf6 {[%emt 0:00:00]} 4. g3 {[%emt 0:00:00]} Be7 {[%emt 0:00:00]} 5. Bg2 {[%emt 0:00:00]} O-O {[%emt 0:00:00]} 6. O-O {[%emt 0:00:00]} c6 {[%emt 0:00:00]} 7. Qc2 {[%emt 0:00:00]} b6 {[%emt 0:00:00]} 8. Ne5 {[%emt 0:00:00]} Bb7 {[%emt 0:00:00]} 9. Nc3 {[%emt 0:00:00]} Nbd7 {[%emt 0:00:00]} 10. e4 {[%emt 0:00:00]} dxc4 {[%emt 0:00:00]} 11. Nxc4 {[%emt 0:00:00]} b5 {[%emt 0:00:00]} 12. Ne3 {[%emt 0:00:00]} Rc8 {[%emt 0:00:00]} 13. Rd1 {[%emt 0:00:00]} Qb6 {[%emt 0:00:00]} 14. a4 {[%emt 0:00:00]} a6 {[%emt 0:00:00]} 15. b3 {[%emt 0:00:00]} Rfd8 {[%emt 0:00:00]} 16. Bb2 {[%emt 0:00:00]} Nf8 {[%emt 0:00:00]} 17. Ne2 {[%emt 0:00:00]} Rd7 {[%emt 0:00:00]} 18. Nf4 {[%emt 0:00:00]} Ng6 {[%emt 0:00:00]} 19. Nd3 {[%emt 0:00:00]} c5 {[%emt 0:00:00]} 20. dxc5 {[%emt 0:00:00]} Bxc5 {[%emt 0:00:00]} 21. a5 {[%emt 0:00:00]} Qc7 {[%emt 0:00:00]} 22. Nxc5 {[%emt 0:00:00]} Qxc5 {[%emt 0:00:00]} 23. Qxc5 {[%emt 0:00:00]} Rxc5 {[%emt 0:00:00]} 24. Rxd7 {[%emt 0:00:00]} Nxd7 {[%emt 0:00:00]} 25. Rd1 {[%emt 0:00:00]} Ngf8 {[%emt 0:00:00]} 26. Kf1 {[%emt 0:00:00]} f6 {[%emt 0:00:00]} 27. Ke2 {[%emt 0:00:00]} Kf7 {[%emt 0:00:00]} 28. h4 {[%emt 0:00:00]} Rc8 {[%emt 0:00:00]} 29. b4 {[%emt 0:00:00]} Nb8 {[%emt 0:00:00]} 30. f4 {[%emt 0:00:00]} Ke7 {[%emt 0:00:00]} 31. Bf3 {[%emt 0:00:00]} Rc7 {[%emt 0:02:25]} 32. h5 {[%emt 0:00:00]} Nc6 {[%emt 0:07:51]} 33. g4 {[%emt 0:03:04]} Rd7 {[%emt 0:02:08]} 34. e5 {[%emt 0:05:23]} h6 {[%emt 0:03:05]} 35. exf6+ {[%emt 0:00:25]} gxf6 {[%emt 0:00:06]} 36. Rxd7+ {[%emt 0:01:04]} Nxd7 {[%emt 0:00:15]} 37. g5 {[%emt 0:00:59]} Nd8 {[%emt 0:02:11]} 38. Bxb7 {[%emt 0:03:23]} Nxb7 {[%emt 0:00:01]} 39. Ng4 {[%emt 0:01:00]} fxg5 {[%emt 0:01:22]} 40. fxg5 {[%emt 0:00:04]} hxg5 {[%emt 0:00:05]} 41. h6 {[%emt 0:00:14]} Nf8 {[%emt 0:00:07]} 42. Nf6 {[%emt 0:01:48]} Kd6 {[%emt 0:02:41]} 43. Ke3 {[%emt 0:03:49]} Nd8 {[%emt 0:00:32]} 44. h7 {[%emt 0:01:24]} Nxh7 {[%emt 0:00:37]} 45. Nxh7 {[%emt 0:00:02]} Kd5 {[%emt 0:00:21]} 46. Kd3 {[%emt 0:00:07]} Nc6 {[%emt 0:00:36]} 47. Bc3 {[%emt 0:00:25]} e5 {[%emt 0:00:34]} 48. Nxg5 {[%emt 0:00:11]} Nd8 {[%emt 0:00:15]} 49. Bd2 {[%emt 0:00:53]} Nc6 {[%emt 0:00:26]} 50. Bc3 {[%emt 0:00:04]} Nd8 {[%emt 0:00:07]} 51. Ne4 {[%emt 0:00:25]} Nc6 {[%emt 0:00:07]} 52. Bd2 {[%emt 0:00:38]} Ne7 {[%emt 0:01:34]} 53. Nc5 {[%emt 0:00:47]} Nf5 {[%emt 0:00:11]} 54. Nxa6 {[%emt 0:01:06]} e4+ {[%emt 0:00:05]} 55. Kc3 {[%emt 0:00:19]} e3 {[%emt 0:00:58]} 56. Be1 {[%emt 0:00:08]} Nd4 {[%emt 0:00:06]} 57. Nc7+ {[%emt 0:00:32]} 1-0

[Event "50th Ciudad Sevilla 2024"]
[Site "Sevilla"]
[Date "2025.01.13"]
[Round "4.8"]
[White "Van Zyl-Rudd, Jack"]
[Black "Mitusov, Semen"]
[Result "0-1"]
[Annotator "RC"]
[ECO "D20"]
[WhiteElo "2248"]
[BlackElo "2463"]
[PlyCount "122"]
[EventDate "2025.01.10"]
[EventType "swiss"]
[EventCountry "ESP"]
[SourceTitle "playchess.com"]
[Source "ChessBase"]
[SourceQuality "1"]
[TimeControl "90+30"]

1. d4 {[%emt 0:00:00]} d5 {[%emt 0:00:00]} 2. c4 {[%emt 0:00:00]} dxc4 {[%emt 0:00:00]} 3. e4 {[%emt 0:00:00]} Nf6 {[%emt 0:00:00]} 4. e5 {[%emt 0:00:00]} Nd5 {[%emt 0:00:00]} 5. Bxc4 {[%emt 0:00:00]} Nc6 {[%emt 0:00:00]} 6. Ne2 {[%emt 0:00:00]} Bf5 {[%emt 0:00:00]} 7. O-O {[%emt 0:00:00]} e6 {[%emt 0:00:00]} 8. Nbc3 {[%emt 0:00:00]} Nb6 {[%emt 0:00:00]} 9. Bd3 {[%emt 0:00:00]} Bxd3 {[%emt 0:00:00]} 10. Qxd3 {[%emt 0:00:00]} Nxe5 {[%emt 0:00:00]} 11. Qe4 {[%emt 0:00:00]} Nc6 {[%emt 0:00:00]} 12. Rd1 {[%emt 0:00:00]} Nd5 {[%emt 0:00:00]} 13. Nf4 {[%emt 0:00:00]} Nce7 {[%emt 0:00:00]} 14. Qe5 {[%emt 0:00:00]} c6 {[%emt 0:00:00]} 15. Qh5 {[%emt 0:00:00]} Nf6 {[%emt 0:00:00]} 16. Qg5 {[%emt 0:00:00]} Ng6 {[%emt 0:00:00]} 17. Nh5 {[%emt 0:01:42]} Nxh5 {[%emt 0:00:00]} 18. Qxh5 {[%emt 0:00:02]} Be7 {[%emt 0:00:00]} 19. Rd3 {[%emt 0:01:44]} Qb6 {[%emt 0:00:00]} 20. Be3 {[%emt 0:01:54]} Qxb2 {[%emt 0:00:00]} 21. Qd1 {[%emt 0:00:32]} Qa3 {[%emt 0:00:00]} 22. d5 {[%emt 0:02:35]} Ne5 {[%emt 0:00:00]} 23. Bc1 {[%emt 0:00:35]} Qa5 {[%emt 0:00:00]} 24. Re3 {[%emt 0:01:52]} Nc4 {[%emt 0:00:00]} 25. dxc6 {[%emt 0:02:37]} Rd8 {[%emt 0:00:00]} 26. Rd3 {[%emt 0:00:28]} O-O {[%emt 0:00:00]} 27. Bf4 {[%emt 0:00:53]} bxc6 {[%emt 0:00:00]} 28. Qe2 {[%emt 0:00:21]} Bf6 {[%emt 0:00:00]} 29. Rc1 {[%emt 0:00:28]} Rxd3 {[%emt 0:00:20]} 30. Qxd3 {[%emt 0:00:01]} Nb2 {[%emt 0:00:03]} 31. Qc2 {[%emt 0:00:58]} Rd8 {[%emt 0:00:49]} 32. Ne4 {[%emt 0:00:35]} Nd3 {[%emt 0:02:21]} 33. Nxf6+ {[%emt 0:00:05]} gxf6 {[%emt 0:00:01]} 34. Bd2 {[%emt 0:00:02]} Qd5 {[%emt 0:00:58]} 35. Rf1 {[%emt 0:01:24]} c5 {[%emt 0:00:21]} 36. Be3 {[%emt 0:00:01]} f5 {[%emt 0:01:56]} 37. Rd1 {[%emt 0:00:59]} Rd7 {[%emt 0:01:09]} 38. Bh6 {[%emt 0:00:31]} f6 {[%emt 0:02:13]} 39. h4 {[%emt 0:00:26]} c4 {[%emt 0:01:50]} 40. Rb1 {[%emt 0:00:04]} Kf7 {[%emt 0:01:18]} 41. Qe2 {[%emt 0:00:39]} Kg6 {[%emt 0:00:01]} 42. Be3 {[%emt 0:00:12]} h5 {[%emt 0:01:14]} 43. Rb8 {[%emt 0:00:19]} f4 {[%emt 0:00:32]} 44. Bd2 {[%emt 0:00:32]} Rg7 {[%emt 0:00:39]} 45. Bc3 {[%emt 0:01:20]} e5 {[%emt 0:01:54]} 46. Rh8 {[%emt 0:00:13]} f3 {[%emt 0:01:33]} 47. Qxf3 {[%emt 0:00:51]} Qxf3 {[%emt 0:00:10]} 48. gxf3 {[%emt 0:00:01]} Nf4 {[%emt 0:00:36]} 49. Bd2 {[%emt 0:00:28]} Kf5+ {[%emt 0:02:02]} 50. Kf1 {[%emt 0:00:06]} Rd7 {[%emt 0:00:07]} 51. Ke1 {[%emt 0:00:30]} Rd3 {[%emt 0:00:50]} 52. Rc8 {[%emt 0:00:38]} Ng2+ {[%emt 0:00:41]} 53. Ke2 {[%emt 0:00:06]} Rd4 {[%emt 0:00:09]} 54. Ra8 {[%emt 0:00:14]} Nxh4 {[%emt 0:00:51]} 55. Rxa7 {[%emt 0:00:07]} Nxf3 {[%emt 0:00:19]} 56. Be3 {[%emt 0:00:06]} Ng1+ {[%emt 0:00:04]} 57. Kf1 {[%emt 0:00:38]} Rd1+ {[%emt 0:00:20]} 58. Kg2 {[%emt 0:00:04]} Ne2 {[%emt 0:00:36]} 59. Rh7 {[%emt 0:02:03]} c3 {[%emt 0:00:19]} 60. Rxh5+ {[%emt 0:00:04]} Kg6 {[%emt 0:00:19]} 61. Rh6+ {[%emt 0:00:32]} Kg7 {[%emt 0:00:01]} 0-1

[Event "50th Ciudad Sevilla 2024"]
[Site "Sevilla"]
[Date "2025.01.13"]
[Round "4.9"]
[White "Urazayev, Arystanbek"]
[Black "Soumya, Swaminathan"]
[Result "1-0"]
[Annotator "ChessBase"]
[ECO "B30"]
[WhiteElo "2448"]
[BlackElo "2243"]
[PlyCount "95"]
[EventDate "2025.01.10"]
[EventType "swiss"]
[EventCountry "ESP"]
[SourceTitle "playchess.com"]
[Source "ChessBase"]
[SourceQuality "1"]
[TimeControl "90+30"]

1. e4 {[%emt 0:00:00]} c5 {[%emt 0:00:00]} 2. Nf3 {[%emt 0:00:00]} Nc6 {[%emt 0:00:00]} 3. Bb5 {[%emt 0:00:00]} e6 {[%emt 0:00:00]} 4. O-O {[%emt 0:00:00]} Nge7 {[%emt 0:00:00]} 5. d4 {[%emt 0:00:00]} cxd4 {[%emt 0:00:00]} 6. Nxd4 {[%emt 0:00:00]} Ng6 {[%emt 0:00:00]} 7. c3 {[%emt 0:00:00]} Be7 {[%emt 0:00:00]} 8. Be3 {[%emt 0:00:00]} O-O {[%emt 0:00:00]} 9. Nd2 {[%emt 0:00:00]} a6 {[%emt 0:00:00]} 10. Bd3 {[%emt 0:00:00]} b5 {[%emt 0:00:00]} 11. Qh5 {[%emt 0:00:00]} Bb7 {[%emt 0:00:00]} 12. Nxc6 {[%emt 0:00:00]} dxc6 {[%emt 0:00:00]} 13. Bc2 {[%emt 0:00:00]} c5 {[%emt 0:00:00]} 14. f4 {[%emt 0:00:00]} f5 {[%emt 0:00:00]} 15. exf5 {[%emt 0:00:00]} exf5 {[%emt 0:00:00]} 16. Nf3 {[%emt 0:00:00]} Qd5 {[%emt 0:00:00]} 17. Rad1 {[%emt 0:00:00]} Qe6 {[%emt 0:00:00]} 18. Rfe1 {[%emt 0:00:00]} Qf6 {[%emt 0:00:00]} 19. Rd7 {[%emt 0:00:00]} Bc8 {[%emt 0:00:00]} 20. Rd2 {[%emt 0:00:00]} Bd6 {[%emt 0:00:00]} 21. Ng5 {[%emt 0:00:00]} h6 {[%emt 0:00:00]} 22. Qf3 {[%emt 0:00:00]} Bxf4 {[%emt 0:00:00]} 23. Qxa8 {[%emt 0:00:00]} Qxg5 {[%emt 0:00:00]} 24. Bxf4 {[%emt 0:04:58]} Nxf4 {[%emt 0:00:00]} 25. Kh1 {[%emt 0:01:16]} h5 {[%emt 0:00:00]} 26. Rf2 {[%emt 0:00:48]} h4 {[%emt 0:00:00]} 27. Qf3 {[%emt 0:00:07]} Ng6 {[%emt 0:03:04]} 28. Kg1 {[%emt 0:01:35]} c4 {[%emt 0:01:54]} 29. h3 {[%emt 0:00:49]} Kh7 {[%emt 0:02:41]} 30. Bd1 {[%emt 0:00:58]} Kh6 {[%emt 0:00:34]} 31. Bc2 {[%emt 0:01:53]} Rf6 {[%emt 0:03:41]} 32. Kh1 {[%emt 0:02:13]} Bd7 {[%emt 0:00:27]} 33. Qe3 {[%emt 0:01:57]} f4 {[%emt 0:00:06]} 34. Qd2 {[%emt 0:00:36]} Bc6 {[%emt 0:02:59]} 35. Be4 {[%emt 0:00:06]} Bxe4 {[%emt 0:03:31]} 36. Rxe4 {[%emt 0:00:02]} Kh7 {[%emt 0:00:25]} 37. Qe2 {[%emt 0:00:58]} Qf5 {[%emt 0:00:17]} 38. Rf1 {[%emt 0:00:40]} Rd6 {[%emt 0:00:16]} 39. b3 {[%emt 0:00:36]} cxb3 {[%emt 0:00:20]} 40. axb3 {[%emt 0:00:02]} Kh6 {[%emt 0:00:22]} 41. c4 {[%emt 0:00:41]} bxc4 {[%emt 0:00:28]} 42. Rxc4 {[%emt 0:00:18]} Rd3 {[%emt 0:00:52]} 43. b4 {[%emt 0:01:40]} Rd5 {[%emt 0:00:43]} 44. Qe4 {[%emt 0:00:26]} Qd7 {[%emt 0:00:26]} 45. Rc5 {[%emt 0:00:35]} Rd4 {[%emt 0:00:15]} 46. Qf3 {[%emt 0:00:19]} Kh7 {[%emt 0:00:52]} 47. Qh5+ {[%emt 0:00:24]} Kg8 {[%emt 0:00:13]} 48. Qxg6 {[%emt 0:00:08]} 1-0

[Event "50th Ciudad Sevilla 2024"]
[Site "Sevilla"]
[Date "2025.01.13"]
[Round "4.10"]
[White "Zhukenov, Aituar"]
[Black "Ilinca, Felix-Antonio"]
[Result "1/2-1/2"]
[Annotator "RC"]
[ECO "D35"]
[WhiteElo "2235"]
[BlackElo "2440"]
[PlyCount "60"]
[EventDate "2025.01.10"]
[EventType "swiss"]
[EventCountry "ESP"]
[SourceTitle "playchess.com"]
[Source "ChessBase"]
[SourceQuality "1"]
[TimeControl "90+30"]

1. d4 {[%emt 0:00:00]} d5 {[%emt 0:00:00]} 2. c4 {[%emt 0:00:00]} e6 {[%emt 0:00:00]} 3. Nc3 {[%emt 0:00:00]} Nf6 {[%emt 0:00:00]} 4. cxd5 {[%emt 0:00:00]} exd5 {[%emt 0:00:00]} 5. Bf4 {[%emt 0:00:00]} Bd6 {[%emt 0:00:00]} 6. Bxd6 {[%emt 0:00:00]} Qxd6 {[%emt 0:00:00]} 7. e3 {[%emt 0:00:00]} O-O {[%emt 0:00:00]} 8. Bd3 {[%emt 0:00:00]} Bg4 {[%emt 0:00:00]} 9. Qc2 {[%emt 0:00:00]} c6 {[%emt 0:00:00]} 10. Nge2 {[%emt 0:00:00]} Bxe2 {[%emt 0:00:00]} 11. Nxe2 {[%emt 0:00:00]} Nbd7 {[%emt 0:00:00]} 12. O-O {[%emt 0:00:00]} Rfe8 {[%emt 0:00:00]} 13. b4 {[%emt 0:00:00]} a5 {[%emt 0:00:00]} 14. b5 {[%emt 0:00:00]} Rec8 {[%emt 0:00:00]} 15. Rfc1 {[%emt 0:00:00]} g6 {[%emt 0:00:00]} 16. bxc6 {[%emt 0:00:00]} bxc6 {[%emt 0:00:00]} 17. a4 {[%emt 0:00:00]} c5 {[%emt 0:00:00]} 18. dxc5 {[%emt 0:00:00]} Nxc5 {[%emt 0:00:00]} 19. Qd1 {[%emt 0:00:00]} Ne6 {[%emt 0:00:00]} 20. Bb5 {[%emt 0:00:00]} h5 {[%emt 0:00:00]} 21. h3 {[%emt 0:00:00]} Ne4 {[%emt 0:00:00]} 22. Ra2 {[%emt 0:00:00]} Rxc1 {[%emt 0:00:00]} 23. Qxc1 {[%emt 0:00:00]} Rd8 {[%emt 0:00:00]} 24. Qe1 {[%emt 0:00:00]} Qb6 {[%emt 0:00:00]} 25. Rc2 {[%emt 0:00:00]} N4c5 {[%emt 0:00:00]} 26. Qa1 {[%emt 0:00:06]} d4 {[%emt 0:00:00]} 27. exd4 {[%emt 0:01:58]} Nb3 {[%emt 0:00:15]} 28. Qc3 {[%emt 0:03:10]} Nbxd4 {[%emt 0:01:46]} 29. Nxd4 {[%emt 0:00:53]} Rxd4 {[%emt 0:02:42]} 30. Rd2 {[%emt 0:00:12]} Rxd2 {[%emt 0:00:55]} 1/2-1/2

[Event "50th Ciudad Sevilla 2024"]
[Site "Sevilla"]
[Date "2025.01.13"]
[Round "4.11"]
[White "Druska, Juraj"]
[Black "Esquivias Quintero, Luis Manuel"]
[Result "1-0"]
[Annotator "ChessBase"]
[ECO "E46"]
[WhiteElo "2438"]
[BlackElo "2234"]
[PlyCount "97"]
[EventDate "2025.01.10"]
[EventType "swiss"]
[EventCountry "ESP"]
[SourceTitle "playchess.com"]
[Source "ChessBase"]
[SourceQuality "1"]
[TimeControl "90+30"]

1. d4 {[%emt 0:00:00]} Nf6 {[%emt 0:00:00]} 2. c4 {[%emt 0:00:00]} e6 {[%emt 0:00:00]} 3. Nc3 {[%emt 0:00:00]} Bb4 {[%emt 0:00:00]} 4. e3 {[%emt 0:00:00]} O-O {[%emt 0:00:00]} 5. Bd2 {[%emt 0:00:00]} d5 {[%emt 0:00:00]} 6. Nf3 {[%emt 0:00:00]} Re8 {[%emt 0:00:00]} 7. Bd3 {[%emt 0:00:00]} b6 {[%emt 0:00:00]} 8. cxd5 {[%emt 0:00:00]} exd5 {[%emt 0:00:00]} 9. O-O {[%emt 0:00:00]} Bb7 {[%emt 0:00:00]} 10. Ne5 {[%emt 0:00:00]} a6 {[%emt 0:00:00]} 11. f4 {[%emt 0:00:00]} c5 {[%emt 0:00:00]} 12. a3 {[%emt 0:00:00]} Bxc3 {[%emt 0:00:00]} 13. Bxc3 {[%emt 0:00:00]} Nc6 {[%emt 0:00:00]} 14. Qf3 {[%emt 0:00:00]} Ne4 {[%emt 0:00:00]} 15. dxc5 {[%emt 0:00:00]} bxc5 {[%emt 0:00:00]} 16. Rad1 {[%emt 0:00:00]} Nxe5 {[%emt 0:00:00]} 17. Bxe5 {[%emt 0:00:00]} Nf6 {[%emt 0:00:00]} 18. b4 {[%emt 0:00:00]} Nd7 {[%emt 0:00:00]} 19. Ba1 {[%emt 0:00:00]} Qe7 {[%emt 0:00:00]} 20. Rfe1 {[%emt 0:00:00]} a5 {[%emt 0:00:33]} 21. Qh3 {[%emt 0:00:00]} g6 {[%emt 0:01:28]} 22. Bb5 {[%emt 0:00:00]} axb4 {[%emt 0:00:53]} 23. axb4 {[%emt 0:02:16]} f5 {[%emt 0:00:11]} 24. bxc5 {[%emt 0:00:36]} Ra5 {[%emt 0:02:54]} 25. Bxd7 {[%emt 0:03:21]} Qxd7 {[%emt 0:00:01]} 26. Bd4 {[%emt 0:00:08]} Bc6 {[%emt 0:01:16]} 27. Ra1 {[%emt 0:00:41]} Rxa1 {[%emt 0:01:01]} 28. Rxa1 {[%emt 0:00:02]} Qe7 {[%emt 0:01:45]} 29. Qh6 {[%emt 0:02:55]} Bb5 {[%emt 0:00:36]} 30. h3 {[%emt 0:01:13]} Bd3 {[%emt 0:00:51]} 31. c6 {[%emt 0:01:56]} Qf8 {[%emt 0:00:27]} 32. Qxf8+ {[%emt 0:00:32]} Kxf8 {[%emt 0:00:41]} 33. Ra7 {[%emt 0:01:00]} Rc8 {[%emt 0:00:05]} 34. c7 {[%emt 0:00:15]} Ke7 {[%emt 0:01:04]} 35. Be5 {[%emt 0:00:06]} Kd7 {[%emt 0:00:09]} 36. Rb7 {[%emt 0:00:31]} Be4 {[%emt 0:01:14]} 37. Rb8 {[%emt 0:00:21]} Bd3 {[%emt 0:00:27]} 38. Kf2 {[%emt 0:00:11]} Be4 {[%emt 0:00:05]} 39. Kg3 {[%emt 0:00:42]} h6 {[%emt 0:00:48]} 40. Rb6 {[%emt 0:00:13]} Rg8 {[%emt 0:00:08]} 41. Rb8 {[%emt 0:02:42]} Rc8 {[%emt 0:00:05]} 42. Kf2 {[%emt 0:00:15]} Bd3 {[%emt 0:00:23]} 43. g4 {[%emt 0:00:31]} fxg4 {[%emt 0:00:39]} 44. hxg4 {[%emt 0:00:03]} h5 {[%emt 0:00:56]} 45. f5 {[%emt 0:01:33]} g5 {[%emt 0:00:01]} 46. gxh5 {[%emt 0:02:08]} Bxf5 {[%emt 0:00:01]} 47. h6 {[%emt 0:00:07]} Be4 {[%emt 0:02:07]} 48. Kg3 {[%emt 0:00:06]} Bf5 {[%emt 0:00:03]} 49. Kf3 {[%emt 0:00:07]} 1-0